bitfinex/quotes_BTCUSD_20251009
["timestamp","ask_amount","ask_price","bid_price","bid_amount"]
[1759972064456,0.60191846,122750.0,122740.0,0.02777]
[1759972064867,1.02504052,122750.0,122740.0,0.02777]
[1759972065079,1.04913293,122750.0,122740.0,0.18477]
[1759972065283,1.04913293,122750.0,122740.0,0.02777]
[1759972065493,1.04913293,122750.0,122740.0,0.26025]
[1759972066341,1.05665332,122750.0,122740.0,0.26025]
[1759972066693,1.05665332,122750.0,122740.0,0.02777]
[1759972067032,1.05665332,122750.0,122740.0,0.26025]
[1759972067472,1.07170141,122750.0,122740.0,0.26025]
[1759972069185,1.07170141,122750.0,122740.0,0.26000561]
[1759972069598,0.63771574,122750.0,122740.0,0.02752561]
[1759972069826,1.07170141,122750.0,122740.0,0.25906561]
[1759972070238,1.07170141,122750.0,122740.0,0.02752561]
[1759972072472,0.63771574,122750.0,122740.0,0.02752561]
[1759972072696,1.07170141,122750.0,122740.0,0.02752561]
[1759972073827,1.047609,122750.0,122740.0,0.05174561]
[1759972074421,1.06502972,122750.0,122740.0,0.05174561]
[1759972078640,1.04998163,122750.0,122740.0,0.05174561]
[1759972078889,1.04246124,122750.0,122740.0,0.05174561]
[1759972080140,1.06514581,122750.0,122740.0,0.05174561]
[1759972080555,1.05758429,122750.0,122740.0,0.05174561]
[1759972080760,0.60847557,122750.0,122740.0,0.05174561]
[1759972081436,0.63116091,122750.0,122740.0,0.05174561]
[1759972082094,1.06514658,122750.0,122740.0,0.05174561]
[1759972082506,0.63116091,122750.0,122740.0,0.05174561]
[1759972083183,0.63116094,122750.0,122740.0,0.05174561]
[1759972083383,0.61374022,122750.0,122740.0,0.05174561]
[1759972083793,0.61374022,122750.0,122740.0,0.02752561]
[1759972083992,1.04772589,122750.0,122740.0,0.02752561]
[1759972084607,1.04772589,122750.0,122740.0,0.05174561]
[1759972085020,1.04772589,122750.0,122740.0,0.02752561]
[1759972085232,1.0718183,122750.0,122740.0,0.02752561]
[1759972085606,1.0718183,122750.0,122740.0,0.05174561]
[1759972085813,0.63783263,122750.0,122740.0,0.05174561]
[1759972086472,0.63027082,122750.0,122740.0,0.05174561]
[1759972086683,0.61374077,122750.0,122740.0,0.28426561]
[1759972088038,0.90832328,122750.0,122740.0,0.28426561]
[1759972088252,0.53061871,122750.0,122740.0,0.28422561]
[1759972088881,0.82520122,122750.0,122740.0,0.28422561]
[1759972095356,0.82520122,122750.0,122740.0,0.05174561]
[1759972095548,0.82520122,122750.0,122740.0,0.28422561]
[1759972095965,0.90832328,122750.0,122740.0,0.02752561]
[1759972096174,0.50294606,122740.0,122730.0,0.00017172]
[1759972096416,0.82021449,122740.0,122730.0,0.00017172]
[1759972096616,0.92858433,122740.0,122730.0,0.00017172]
[1759972097577,0.93358433,122740.0,122730.0,0.00017172]
[1759972097800,0.93673049,122740.0,122730.0,0.00017172]
[1759972098344,0.93316813,122740.0,122730.0,0.00017172]
[1759972100301,0.91804457,122740.0,122730.0,0.00017172]
[1759972100503,1.15052457,122740.0,122730.0,0.00017172]
[1759972100866,1.16563697,122740.0,122730.0,0.00017172]
[1759972101317,1.15052457,122740.0,122730.0,0.00017172]
[1759972105267,0.85594206,122740.0,122730.0,0.00017172]
[1759972105530,1.15052457,122740.0,122730.0,0.00017172]
[1759972106656,0.91804457,122740.0,122730.0,0.01565172]
[1759972106874,1.15052457,122740.0,122730.0,0.00017172]
[1759972109034,1.16562132,122740.0,122730.0,0.00017172]
[1759972109912,0.93314132,122740.0,122730.0,0.00017172]
[1759972110122,1.23562132,122740.0,122730.0,0.00017172]
[1759972110338,1.22052457,122740.0,122730.0,0.00017172]
[1759972112507,1.25067647,122740.0,122730.0,0.00017172]
[1759972112941,1.31130532,122740.0,122730.0,0.00017172]
[1759972113303,1.62097612,122740.0,122730.0,1e-08]
[1759972113512,0.34,122710.0,122700.0,0.22714867]
[1759972113722,0.79756841,122710.0,122700.0,0.24262867]
[1759972113918,0.74740352,122710.0,122700.0,0.24414771]
[1759972114632,0.52629166,122710.0,122700.0,0.24414771]
[1759972114871,0.72409776,122710.0,122700.0,0.2687545]
[1759972115243,0.72909776,122710.0,122700.0,0.2687545]
[1759972115715,0.72909776,122710.0,122700.0,0.20255947]
[1759972119187,0.5079859,122710.0,122700.0,0.20255947]
[1759972119358,0.72909776,122710.0,122700.0,0.20255947]
[1759972120801,0.5079859,122710.0,122700.0,0.20255947]
[1759972120995,0.72909776,122710.0,122700.0,0.20255947]
[1759972123112,0.5079859,122710.0,122700.0,0.20255947]
[1759972123262,0.005,122710.0,122700.0,0.89914731]
[1759972123470,0.1679859,122710.0,122700.0,0.58667051]
[1759972123669,0.1679859,122710.0,122700.0,0.81915051]
[1759972123871,0.005,122710.0,122700.0,0.81915051]
[1759972124204,0.1679859,122710.0,122700.0,0.81915051]
[1759972125481,0.1679859,122710.0,122700.0,0.59803865]
[1759972125981,0.38909776,122710.0,122700.0,0.43503947]
[1759972126396,0.1679859,122710.0,122700.0,0.43503947]
[1759972126628,0.38909776,122710.0,122700.0,0.43503947]
[1759972127074,0.38909776,122710.0,122700.0,0.59803865]
[1759972127704,0.38909776,122710.0,122700.0,0.43503947]
[1759972127914,0.1679859,122710.0,122700.0,0.43503947]
[1759972128076,0.38909776,122710.0,122700.0,0.43503947]
[1759972129447,0.38909776,122710.0,122700.0,0.59803865]
[1759972131104,0.38816397,122710.0,122700.0,0.59803865]
[1759972132861,0.00406621,122710.0,122700.0,0.59803865]
[1759972133741,0.16705211,122710.0,122700.0,0.59803865]
[1759972134160,0.38816397,122710.0,122700.0,0.59803865]
[1759972135813,0.38816397,122710.0,122700.0,0.43499947]
[1759972136018,0.38816397,122710.0,122700.0,0.59799865]
[1759972136246,0.38816397,122710.0,122700.0,0.43499947]
[1759972137077,0.38816397,122710.0,122700.0,0.59799865]
[1759972138775,0.38816397,122710.0,122700.0,0.59795865]
[1759972141530,0.38816397,122710.0,122700.0,0.20255947]
[1759972141745,0.38816397,122710.0,122700.0,0.43495947]
[1759972141953,0.16705211,122710.0,122700.0,0.59795865]
[1759972142179,0.38816397,122710.0,122700.0,0.59795865]
[1759972142396,0.38816397,122710.0,122700.0,0.43495947]
[1759972143236,0.38816397,122710.0,122700.0,0.20255947]
[1759972143697,0.38816397,122710.0,122700.0,0.43495947]
[1759972144351,0.97258159,122710.0,122700.0,0.15042947]
[1759972144557,0.97258159,122710.0,122700.0,0.38282947]
[1759972144778,0.97258159,122710.0,122700.0,0.39801947]
[1759972148169,0.97258159,122710.0,122700.0,0.41017947]
[1759972149944,0.97258159,122710.0,122700.0,0.43419947]
[1759972151202,0.53035787,122710.0,122700.0,0.43419947]
[1759972151464,0.97258159,122710.0,122700.0,0.43419947]
[1759972152079,0.75146973,122710.0,122700.0,0.43419947]
[1759972152488,0.75146973,122710.0,122700.0,0.20179947]
[1759972152671,0.75146973,122710.0,122700.0,0.43415947]
[1759972153986,0.97258159,122710.0,122700.0,0.43415947]
[1759972154399,0.53035787,122710.0,122700.0,0.43415947]
[1759972154804,0.97258159,122710.0,122700.0,0.43415947]
[1759972154990,0.75146973,122710.0,122700.0,0.43415947]
[1759972155666,0.53035787,122710.0,122700.0,0.43415947]
[1759972155877,0.75146973,122710.0,122700.0,0.20179947]
[1759972156084,0.72816397,122710.0,122700.0,0.43415947]
[1759972156811,0.56517807,122710.0,122700.0,0.43415947]
[1759972157020,0.72816397,122710.0,122700.0,0.43415947]
[1759972157451,0.72816397,122710.0,122700.0,0.20179947]
[1759972157642,0.73116397,122710.0,122700.0,0.43515947]
[1759972159345,0.51005211,122710.0,122700.0,0.43515947]
[1759972159540,0.73116397,122710.0,122700.0,0.43515947]
[1759972160398,0.73116397,122710.0,122700.0,0.20279947]
[1759972160601,0.73116397,122710.0,122700.0,0.43515947]
[1759972161239,0.73116397,122710.0,122700.0,0.20279947]
[1759972161450,0.80116397,122710.0,122700.0,0.43515947]
[1759972161863,0.80116397,122710.0,122700.0,0.20279947]
[1759972162067,1.04558159,122710.0,122700.0,0.43515947]
[1759972162268,0.82446973,122710.0,122700.0,0.43515947]
[1759972165424,0.82446973,122710.0,122700.0,0.41109947]
[1759972165622,1.02227583,122710.0,122700.0,0.17877947]
[1759972165824,1.27790159,122710.0,122700.0,0.39590947]
[1759972166234,1.37996741,122710.0,122700.0,1e-08]
[1759972166445,0.55645684,122700.0,122690.0,0.30675805]
[1759972166737,1.55792305,122700.0,122690.0,0.32301511]
[1759972166947,1.10449119,122700.0,122690.0,0.33517511]
[1759972167147,1.36129398,122700.0,122690.0,0.33517511]
[1759972167435,1.33681119,122700.0,122690.0,0.33517511]
[1759972167647,1.33881119,122700.0,122690.0,0.33617511]
[1759972167844,1.36729398,122700.0,122690.0,0.33617511]
[1759972168047,1.34081119,122700.0,122690.0,0.33517511]
[1759972168225,1.36529398,122700.0,122690.0,0.33517511]
[1759972168424,1.35773164,122700.0,122690.0,0.33517511]
[1759972168625,1.33324885,122700.0,122690.0,0.33517511]
[1759972169032,1.10092885,122700.0,122690.0,0.33517511]
[1759972169231,1.33324885,122700.0,122690.0,0.31901511]
[1759972169510,1.33324885,122700.0,122690.0,0.30785511]
[1759972169511,1.3505235,122700.0,122690.0,0.30785511]
[1759972169926,1.36173164,122700.0,122690.0,0.30785511]
[1759972170144,1.5828435,122700.0,122690.0,0.30785511]
[1759972170433,1.56771727,122700.0,122690.0,0.30785511]
[1759972170678,0.6475789,122700.0,122690.0,0.32401511]
[1759972170869,1.29881686,122700.0,122690.0,0.33617511]
[1759972171059,1.29881686,122700.0,122690.0,0.30785511]
[1759972171473,1.54323448,122700.0,122690.0,0.30785511]
[1759972172051,1.54323448,122700.0,122690.0,0.30836156]
[1759972172252,1.34660541,122700.0,122690.0,0.33668156]
[1759972172478,1.32212262,122700.0,122690.0,0.33668156]
[1759972172816,1.34660541,122700.0,122690.0,0.33668156]
[1759972172995,1.11428541,122700.0,122690.0,0.33668156]
[1759972173410,1.34660541,122700.0,122690.0,0.33668156]
[1759972173632,1.11428541,122700.0,122690.0,0.33668156]
[1759972173837,1.08980262,122700.0,122690.0,0.33668156]
[1759972174026,1.32329965,122700.0,122690.0,0.33668156]
[1759972174260,1.29881686,122700.0,122690.0,0.33668156]
[1759972174627,1.06649686,122700.0,122690.0,0.33668156]
[1759972174833,1.29881686,122700.0,122690.0,0.33668156]
[1759972175851,1.1514777,122700.0,122690.0,0.33668156]
[1759972178528,1.15902743,122700.0,122690.0,0.33668156]
[1759972183232,1.20681598,122700.0,122690.0,0.30836156]
[1759972186380,1.22191575,122700.0,122690.0,0.30836156]
[1759972187156,1.20681598,122700.0,122690.0,0.30836156]
[1759972187362,1.22191422,122700.0,122690.0,0.30836156]
[1759972188565,1.21436449,122700.0,122690.0,0.30836156]
[1759972188781,1.22191451,122700.0,122690.0,0.30836156]
[1759972190672,0.98959451,122700.0,122690.0,0.30836156]
[1759972190877,1.22187451,122700.0,122690.0,0.30836156]
[1759972192509,1.19739172,122700.0,122690.0,0.30836156]
[1759972192707,0.96511172,122700.0,122690.0,0.32398156]
[1759972192930,0.94180596,122700.0,122690.0,0.35939156]
[1759972193168,0.83395126,122700.0,122690.0,0.35939156]
[1759972193314,1.12883582,122700.0,122690.0,0.35939156]
[1759972193712,0.89655582,122700.0,122690.0,0.35939156]
[1759972193951,0.81343376,122700.0,122690.0,0.35939156]
[1759972194175,1.04571376,122700.0,122690.0,0.59167156]
[1759972194380,1.04572561,122700.0,122690.0,0.59167156]
[1759972194800,0.47344561,122700.0,122690.0,0.59167156]
[1759972195010,0.80588374,122700.0,122690.0,0.59167156]
[1759972195211,0.80588374,122700.0,122690.0,0.35939156]
[1759972195436,0.80588374,122700.0,122690.0,0.59163156]
[1759972195664,0.51099918,122700.0,122690.0,0.35939156]
[1759972195878,0.80588374,122700.0,122690.0,0.59163156]
[1759972197113,0.80588374,122700.0,122690.0,0.35939156]
[1759972197331,0.51099918,122700.0,122690.0,0.59163156]
[1759972197536,0.80588374,122700.0,122690.0,0.59163156]
[1759972198369,0.51099918,122700.0,122690.0,0.35939156]
[1759972198598,0.51099918,122700.0,122690.0,0.59163156]
[1759972198599,0.80588374,122700.0,122690.0,0.59163156]
[1759972198794,0.80580927,122700.0,122690.0,0.59163156]
[1759972199034,0.51092471,122700.0,122690.0,0.59163156]
[1759972199241,0.17099918,122700.0,122690.0,0.75464403]
[1759972199986,0.008,122700.0,122690.0,0.52240403]
[1759972200181,0.17099918,122700.0,122690.0,0.52240403]
[1759972200389,0.17099918,122700.0,122690.0,0.75464403]
[1759972201116,0.17099918,122700.0,122690.0,0.35939156]
[1759972201351,0.17099918,122700.0,122690.0,0.59163156]
[1759972201592,0.53588374,122700.0,122690.0,0.35939156]
[1759972201873,0.53588374,122700.0,122690.0,0.59159156]
[1759972202080,0.53588374,122700.0,122690.0,0.35939156]
[1759972202261,0.8911895,122700.0,122690.0,0.33429156]
[1759972202491,0.8211895,122700.0,122690.0,0.56649156]
[1759972202673,0.8211895,122700.0,122690.0,0.56749156]
[1759972202674,0.8271895,122700.0,122690.0,0.56749156]
[1759972203121,0.8271895,122700.0,122690.0,0.33529156]
[1759972203338,1.14051156,122700.0,122690.0,0.30736156]
[1759972203545,1.13651156,122700.0,122690.0,0.30736156]
[1759972203758,1.13951156,122700.0,122690.0,0.30836156]
[1759972203968,1.14351156,122700.0,122690.0,0.30836156]
[1759972204186,1.13951156,122700.0,122690.0,0.30836156]
[1759972204845,1.13951156,122700.0,122690.0,0.33529156]
[1759972205409,1.13651156,122700.0,122690.0,0.33429156]
[1759972205621,1.14651156,122700.0,122690.0,0.33529156]
[1759972205832,0.619427,122700.0,122690.0,0.35845156]
[1759972206046,0.8910058,122700.0,122690.0,0.59065156]
[1759972206260,0.80788374,122700.0,122690.0,0.35845156]
[1759972206474,0.58299918,122700.0,122690.0,0.59065156]
[1759972209576,0.24299918,122700.0,122690.0,0.75366403]
[1759972211033,0.08,122700.0,122690.0,0.75366403]
[1759972211235,0.08,122700.0,122690.0,0.83362083]
[1759972211447,0.08,122700.0,122690.0,0.52146403]
[1759972211638,0.01,122700.0,122690.0,0.75362403]
[1759972211847,0.006,122700.0,122690.0,0.75262403]
[1759972212066,0.006,122700.0,122690.0,0.60358609]
[1759972212221,0.002,122700.0,122690.0,0.68938609]
[1759972212433,0.002,122700.0,122690.0,1.00154289]
[1759972212663,0.005,122700.0,122690.0,0.60458609]
[1759972213087,0.005,122700.0,122690.0,0.92154609]
[1759972213487,0.005,122700.0,122690.0,0.60458609]
[1759972213714,0.005,122700.0,122690.0,0.92154609]
[1759972214343,0.005,122700.0,122690.0,0.83674609]
[1759972214550,0.005,122700.0,122690.0,0.68938609]
[1759972214787,0.005,122700.0,122690.0,0.92154609]
[1759972216038,0.005,122700.0,122690.0,0.68938609]
[1759972216194,0.005,122700.0,122690.0,0.92154609]
[1759972216413,0.005,122700.0,122690.0,0.92150609]
[1759972216684,0.16799918,122700.0,122690.0,0.83670609]
[1759972216824,0.005,122700.0,122690.0,0.60458609]
[1759972217043,0.005,122700.0,122690.0,0.83670609]
[1759972219359,0.16799918,122700.0,122690.0,0.83670609]
[1759972219575,0.16799918,122700.0,122690.0,0.92150609]
[1759972219762,0.16799918,122700.0,122690.0,0.83670609]
[1759972219972,0.16799918,122700.0,122690.0,0.92150609]
[1759972220317,0.005,122700.0,122690.0,0.92150609]
[1759972223336,0.005,122700.0,122690.0,0.96009153]
[1759972223550,0.005,122700.0,122690.0,0.68938609]
[1759972223754,0.005,122700.0,122690.0,0.92150609]
[1759972224298,0.005,122700.0,122690.0,0.92146609]
[1759972224670,0.16599918,122700.0,122690.0,0.92046609]
[1759972224895,0.16298721,122710.0,122690.0,0.92146609]
[1759972225094,0.008,122700.0,122690.0,0.66922609]
[1759972225297,0.008,122700.0,122690.0,0.90130609]
[1759972225665,0.008,122700.0,122690.0,0.92446609]
[1759972225903,0.008,122700.0,122690.0,0.44357362]
[1759972225904,0.16999918,122700.0,122690.0,0.44357362]
[1759972226104,0.16999918,122700.0,122690.0,0.92346609]
[1759972226640,0.007,122700.0,122690.0,0.92346609]
[1759972227299,0.16999918,122700.0,122690.0,0.92446609]
[1759972227852,0.007,122700.0,122690.0,0.92346609]
[1759972228214,0.008,122700.0,122690.0,0.92446609]
[1759972229056,0.008,122700.0,122690.0,1.00446289]
[1759972229511,0.008,122700.0,122690.0,0.92446609]
[1759972231784,0.17099918,122700.0,122690.0,0.92446609]
[1759972238642,0.008,122700.0,122690.0,1.14545136]
[1759972239270,0.008,122700.0,122690.0,1.36651663]
[1759972239476,0.008,122700.0,122690.0,1.13451663]
[1759972239686,0.008,122700.0,122690.0,1.44908874]
[1759972239891,0.008,122700.0,122690.0,1.22802347]
[1759972240928,0.008,122700.0,122690.0,1.44908874]
[1759972241133,0.008,122700.0,122690.0,1.22802347]
[1759972246149,0.008,122700.0,122690.0,1.44908874]
[1759972249628,0.008,122700.0,122690.0,1.55708874]
[1759972249917,0.008,122700.0,122690.0,1.58208873]
[1759972250158,0.008,122700.0,122690.0,1.81404873]
[1759972250555,0.007,122700.0,122690.0,1.61124063]
[1759972250723,0.007,122700.0,122690.0,1.94320062]
[1759972250921,0.00021278,122730.0,122720.0,0.16297262]
[1759972251192,0.00021278,122730.0,122720.0,0.79572995]
[1759972251372,0.00021278,122730.0,122720.0,0.51779995]
[1759972251571,0.00021278,122730.0,122720.0,0.83451995]
[1759972252258,0.00021278,122730.0,122720.0,0.8589874]
[1759972252421,0.00721278,122730.0,122720.0,0.8619874]
[1759972252607,0.00821278,122730.0,122720.0,0.52179995]
[1759972252808,0.00821278,122730.0,122720.0,0.91437842]
[1759972253108,0.00821278,122730.0,122720.0,0.59769842]
[1759972253292,0.00821278,122730.0,122720.0,0.91437842]
[1759972254409,0.00821278,122730.0,122720.0,0.83847995]
[1759972255441,0.00821278,122730.0,122720.0,0.61467238]
[1759972255866,0.00821278,122730.0,122720.0,0.84659238]
[1759972258257,0.00821278,122730.0,122720.0,0.84655238]
[1759972259261,0.00821278,122730.0,122720.0,0.61467238]
[1759972259490,0.00821278,122730.0,122720.0,0.84655238]
[1759972259695,0.00821278,122730.0,122720.0,0.92654918]
[1759972259897,0.00821278,122730.0,122720.0,1.14761445]
[1759972261445,0.00821278,122730.0,122720.0,0.38884391]
[1759972261655,0.00821278,122730.0,122720.0,0.62548711]
[1759972262022,0.00821278,122730.0,122720.0,0.84655238]
[1759972263198,0.00821278,122730.0,122720.0,0.84651238]
[1759972265391,0.00821278,122730.0,122720.0,0.62544711]
[1759972265634,0.00821278,122730.0,122720.0,1.06757765]
[1759972265801,0.00821278,122730.0,122720.0,1.14757445]
[1759972267187,0.00821278,122730.0,122720.0,0.70544391]
[1759972267418,0.00821278,122730.0,122720.0,1.14757445]
[1759972268062,0.00821278,122730.0,122720.0,1.13679972]
[1759972268280,0.00821278,122730.0,122720.0,1.14757445]
[1759972268489,0.00821278,122730.0,122720.0,1.17203951]
[1759972270902,0.00721278,122730.0,122720.0,1.17103951]
[1759972271110,0.00021278,122730.0,122720.0,1.16803951]
[1759972271392,0.00121278,122730.0,122720.0,1.16903951]
[1759972271596,0.00121278,122730.0,122720.0,0.85243951]
[1759972271766,0.00121278,122730.0,122720.0,1.50807951]
[1759972271977,0.00121278,122730.0,122720.0,0.85243951]
[1759972272156,0.00121278,122730.0,122720.0,1.50807951]
[1759972272830,0.00921278,122730.0,122720.0,1.51107951]
[1759972274215,0.00921278,122730.0,122720.0,1.84034478]
[1759972274419,0.00921278,122730.0,122720.0,2.17214477]
[1759972275457,0.00921278,122730.0,122720.0,1.99549666]
[1759972275688,0.00921278,122730.0,122720.0,2.22725666]
[1759972276377,0.00755922,122780.0,122770.0,0.16290624]
[1759972276545,0.39157966,122790.0,122770.0,0.48934943]
[1759972276774,0.17043893,122790.0,122780.0,0.43012297]
[1759972276908,0.17043893,122790.0,122780.0,0.44534297]
[1759972277515,0.00805574,122790.0,122780.0,0.43464824]
[1759972277737,0.00805574,122790.0,122780.0,0.28002621]
[1759972277933,0.17093545,122790.0,122780.0,0.59654621]
[1759972278332,0.17093545,122790.0,122780.0,0.28002621]
[1759972278601,0.17093545,122790.0,122780.0,0.59654621]
[1759972279219,0.17493545,122790.0,122780.0,0.59754621]
[1759972279425,0.18893545,122790.0,122780.0,0.60054621]
[1759972279640,0.17493545,122790.0,122780.0,0.59754621]
[1759972280044,0.18693545,122790.0,122780.0,0.53310297]
[1759972280290,0.02405574,122790.0,122780.0,0.52240824]
[1759972280410,0.02005574,122790.0,122780.0,1.06528531]
[1759972280838,0.02305574,122790.0,122780.0,0.84522004]
[1759972281086,0.02305574,122790.0,122780.0,1.14628211]
[1759972282104,0.02305574,122790.0,122780.0,0.91456211]
[1759972282357,0.02305574,122790.0,122780.0,0.62415477]
[1759972282571,0.02305574,122790.0,122780.0,0.84522004]
[1759972283317,0.02305574,122790.0,122780.0,0.61346004]
[1759972283538,0.02305574,122790.0,122780.0,0.62407477]
[1759972283922,0.02305574,122790.0,122780.0,0.84514004]
[1759972284551,0.02305574,122790.0,122780.0,0.52874004]
[1759972284762,0.02305574,122790.0,122780.0,0.84514004]
[1759972284974,0.02305574,122790.0,122780.0,0.8794924]
[1759972285204,0.02305574,122790.0,122780.0,0.5630924]
[1759972285433,0.18593545,122790.0,122780.0,0.34202713]
[1759972285665,0.40700072,122790.0,122780.0,0.13841]
[1759972285908,0.81700072,122790.0,122780.0,0.13841]
[1759972286106,0.81700072,122790.0,122780.0,0.37009]
[1759972286310,0.59593545,122790.0,122780.0,0.37009]
[1759972286531,0.59593545,122790.0,122780.0,0.13841]
[1759972286781,0.81700072,122790.0,122780.0,0.37009]
[1759972287007,0.81700072,122790.0,122780.0,0.05369]
[1759972287230,0.81700072,122790.0,122780.0,0.28537]
[1759972287711,0.81700072,122790.0,122780.0,0.05369]
[1759972287933,0.81700072,122790.0,122780.0,0.28537]
[1759972289324,0.8388126,122790.0,122780.0,0.28533]
[1759972289535,0.8388126,122790.0,122780.0,0.05369]
[1759972289711,1.05987787,122790.0,122780.0,0.26205]
[1759972290143,1.05987787,122790.0,122780.0,0.03041]
[1759972290356,1.05986096,122790.0,122780.0,0.03041]
[1759972290560,1.05986096,122790.0,122780.0,0.11477]
[1759972290775,1.05986096,122790.0,122780.0,0.03041]
[1759972290926,1.05986096,122790.0,122780.0,0.26205]
[1759972291338,1.04486096,122790.0,122780.0,0.25905]
[1759972291560,1.04486096,122790.0,122780.0,0.02741]
[1759972291782,1.04886096,122790.0,122780.0,0.24909]
[1759972292645,1.05486096,122790.0,122780.0,0.05369]
[1759972292926,1.03304908,122790.0,122780.0,0.28533]
[1759972293124,1.03304908,122790.0,122780.0,0.05369]
[1759972293331,1.03304908,122790.0,122780.0,0.26205]
[1759972293563,1.03304908,122790.0,122780.0,0.003]
[1759972293819,1.06995395,122790.0,122780.0,0.003]
[1759972294215,1.15307601,122790.0,122780.0,0.003]
[1759972294422,1.15307601,122790.0,122780.0,0.103]
[1759972294847,1.13798302,122790.0,122780.0,0.103]
[1759972295057,1.15307835,122790.0,122780.0,0.103]
[1759972295282,1.17098476,122790.0,122780.0,0.103]
[1759972295513,1.15307835,122790.0,122780.0,0.103]
[1759972296794,1.38471835,122790.0,122780.0,0.103]
[1759972297625,1.38471835,122790.0,122780.0,0.123]
[1759972297876,1.38471835,122790.0,122780.0,0.13858]
[1759972298107,1.23708414,122790.0,122780.0,0.13858]
[1759972298322,1.21527226,122790.0,122780.0,0.15006]
[1759972298745,1.21527226,122790.0,122780.0,0.13858]
[1759972299345,1.21527226,122790.0,122780.0,0.15006]
[1759972300901,1.21527226,122790.0,122780.0,0.13448]
[1759972301106,1.21527226,122790.0,122780.0,0.15006]
[1759972301323,1.20017693,122790.0,122780.0,0.15006]
[1759972301541,1.20017693,122790.0,122780.0,0.123]
[1759972301752,1.23709485,122790.0,122780.0,0.123]
[1759972302363,1.22198881,122790.0,122780.0,0.123]
[1759972303432,1.22200021,122790.0,122780.0,0.123]
[1759972303638,1.23710712,122790.0,122780.0,0.123]
[1759972304820,1.22200021,122790.0,122780.0,0.123]
[1759972305555,1.22200021,122790.0,122780.0,0.13823]
[1759972306530,0.99036021,122790.0,122780.0,0.13823]
[1759972306739,1.22200021,122790.0,122780.0,0.13823]
[1759972308315,1.20018833,122790.0,122780.0,0.13823]
[1759972308797,0.96854833,122790.0,122780.0,0.13823]
[1759972309296,1.20014833,122790.0,122780.0,0.14966]
[1759972309875,0.96854833,122790.0,122780.0,0.14966]
[1759972310081,1.20014833,122790.0,122780.0,0.14966]
[1759972310289,0.96854833,122790.0,122780.0,0.14966]
[1759972310657,1.20014833,122790.0,122780.0,0.14966]
[1759972311309,1.20014833,122790.0,122780.0,0.17298]
[1759972311516,0.96854833,122790.0,122780.0,0.17298]
[1759972311855,1.20014833,122790.0,122780.0,0.17298]
[1759972312090,1.20014833,122790.0,122780.0,0.14966]
[1759972313232,1.22461235,122790.0,122780.0,0.14966]
[1759972313611,1.22462204,122790.0,122780.0,0.14966]
[1759972314235,0.99302204,122790.0,122780.0,0.14966]
[1759972314456,1.22462204,122790.0,122780.0,0.14966]
[1759972314663,1.22462204,122790.0,122780.0,0.17298]
[1759972315754,0.99302204,122790.0,122780.0,0.14966]
[1759972315958,1.20015802,122790.0,122780.0,0.17298]
[1759972317938,1.20015802,122790.0,122780.0,0.14966]
[1759972320272,0.96855802,122790.0,122780.0,0.14966]
[1759972320428,1.20011802,122790.0,122780.0,0.17298]
[1759972320622,0.96855802,122790.0,122780.0,0.17298]
[1759972320829,1.20011802,122790.0,122780.0,0.17298]
[1759972321292,1.20013198,122790.0,122780.0,0.17298]
[1759972322971,0.96857198,122790.0,122780.0,0.17298]
[1759972323317,1.20013198,122790.0,122780.0,0.17298]
[1759972323517,0.88544992,122790.0,122780.0,0.17298]
[1759972326198,0.59095359,122790.0,122780.0,0.17298]
[1759972326597,0.88544992,122790.0,122780.0,0.17298]
[1759972328767,0.08807388,122790.0,122780.0,0.33587297]
[1759972328970,0.08807388,122790.0,122780.0,0.56739297]
[1759972329136,0.08049652,122790.0,122780.0,0.56739297]
[1759972329547,0.24337623,122790.0,122780.0,0.56739297]
[1759972329931,0.24337623,122790.0,122780.0,0.17298]
[1759972330135,0.53787256,122790.0,122780.0,0.17298]
[1759972330337,0.53787256,122790.0,122780.0,0.4045]
[1759972332337,0.53787256,122790.0,122780.0,0.17298]
[1759972332548,0.53787256,122790.0,122780.0,0.4045]
[1759972333329,0.55577897,122790.0,122780.0,0.4045]
[1759972333532,0.89968444,122790.0,122780.0,0.35452]
[1759972333972,0.9828065,122790.0,122780.0,0.123]
[1759972334401,1.02999628,122790.0,122780.0,0.123]
[1759972334657,1.02399628,122790.0,122780.0,0.121]
[1759972335041,1.01999628,122790.0,122780.0,0.12]
[1759972335252,1.02299628,122790.0,122780.0,0.127]
[1759972335478,1.02399628,122790.0,122780.0,0.121]
[1759972335685,1.02399628,122790.0,122780.0,0.124]
[1759972335904,0.73649995,122790.0,122780.0,0.123]
[1759972336107,1.03099628,122790.0,122780.0,0.123]
[1759972336313,1.04199628,122790.0,122780.0,0.14122]
[1759972337237,1.04199571,122790.0,122780.0,0.14122]
[1759972338796,1.02018383,122790.0,122780.0,0.14122]
[1759972338996,1.25170383,122790.0,122780.0,0.14122]
[1759972339215,1.25170383,122790.0,122780.0,0.15341]
[1759972340820,1.02018383,122790.0,122780.0,0.15341]
[1759972340973,1.25166383,122790.0,122780.0,0.15341]
[1759972341396,1.25166383,122790.0,122780.0,0.17653]
[1759972344001,0.64256544,122790.0,122780.0,0.17653]
[1759972344208,0.55744756,122790.0,122780.0,0.17653]
[1759972344417,0.54987256,122790.0,122780.0,0.17653]
[1759972345038,0.88987256,122790.0,122780.0,0.17653]
[1759972346303,0.88987256,122790.0,122780.0,0.40801]
[1759972346848,0.88987256,122790.0,122780.0,0.17653]
[1759972347060,0.88987256,122790.0,122780.0,0.40801]
[1759972347468,0.88987256,122790.0,122780.0,0.17653]
[1759972347651,0.88987256,122790.0,122780.0,0.40801]
[1759972348065,0.88987256,122790.0,122780.0,0.15341]
[1759972348271,0.88987256,122790.0,122780.0,0.35648]
[1759972348697,0.88987256,122790.0,122780.0,0.15341]
[1759972353382,0.91259942,122790.0,122780.0,0.125]
[1759972354033,0.91259942,122790.0,122780.0,0.14122]
[1759972354670,0.91259942,122790.0,122780.0,0.15341]
[1759972356070,0.91259942,122790.0,122780.0,0.1767]
[1759972356269,0.91259942,122790.0,122780.0,0.15341]
[1759972356488,1.14403942,122790.0,122780.0,0.15341]
[1759972356904,1.12888831,122790.0,122780.0,0.1767]
[1759972357714,0.89744831,122790.0,122780.0,0.1767]
[1759972357914,1.04463682,122790.0,122780.0,0.1767]
[1759972358113,1.04463682,122790.0,122780.0,0.15341]
[1759972358724,1.04463682,122790.0,122780.0,0.1767]
[1759972359163,1.04463682,122790.0,122780.0,0.15341]
[1759972359398,1.05979205,122790.0,122780.0,0.15341]
[1759972361606,1.05979882,122790.0,122780.0,0.15341]
[1759972362017,1.05979882,122790.0,122780.0,0.1767]
[1759972362212,1.05979882,122790.0,122780.0,0.15341]
[1759972365052,1.05979882,122790.0,122780.0,0.17677]
[1759972365424,0.61811398,122790.0,122780.0,0.17677]